fUST/lending_fUST_20250618
["ID","MTS","AMOUNT","RATE_DAILY","PERIOD"]
[366427052,1750252237796,-151.0,0.00021917,2]
[366427053,1750252237805,-460.0,0.00021917,6]
[366427054,1750252237815,-151.0,0.00021917,2]
[366427055,1750252237825,-151.0,0.00021917,2]
[366427056,1750252237834,-151.0,0.00021917,2]
[366427058,1750252237844,-206.71287,0.00021917,2]
[366427059,1750252237853,-466.81445133,0.00021917,6]
[366427061,1750252237863,-221.27918365,0.00021917,6]
[366427063,1750252237872,-452.26964847,0.00021917,6]
[366427064,1750252237882,-460.0,0.00021917,6]
[366427066,1750252237891,-411.67450072,0.00021917,6]
[366427067,1750252237899,-460.0,0.00021917,6]
[366427068,1750252237906,-460.0,0.00021917,6]
[366427069,1750252237915,-415.81283825,0.00021917,6]
[366427070,1750252237927,-460.0,0.00021917,6]
[366427071,1750252237936,-460.0,0.00021917,6]
[366427072,1750252237946,-460.0,0.00021917,6]
[366427073,1750252237955,-477.97174027,0.00021917,6]
[366427074,1750252237965,-460.0,0.00021917,6]
[366427075,1750252237976,-556.44085309,0.00021917,6]
[366427076,1750252237985,-468.349625,0.00021917,6]
[366427077,1750252237995,-460.0,0.00021917,6]
[366427078,1750252238005,-353.743171,0.00021917,2]
[366427079,1750252238015,-460.0,0.00021917,6]
[366427080,1750252238024,-353.743171,0.00021917,2]
[366427081,1750252238034,-353.743171,0.00021917,2]
[366427082,1750252238043,-353.743171,0.00021917,2]
[366427083,1750252238053,-353.743171,0.00021917,2]
[366427084,1750252238063,-353.743175,0.00021917,2]
[366427085,1750252238072,-460.0,0.00021917,6]
[366427086,1750252238082,-460.0,0.00021917,6]
[366427087,1750252238093,-460.0,0.00021917,6]
[366427088,1750252238102,-251.42308909,0.00021917,6]
[366427089,1750252238111,-460.0,0.00021917,6]
[366427090,1750252238121,-460.0,0.00021917,6]
[366427091,1750252238130,-460.0,0.00021917,6]
[366427092,1750252238140,-460.0,0.00021917,6]
[366427093,1750252238149,-460.0,0.00021917,6]
[366427094,1750252238159,-460.0,0.00021917,6]
[366427095,1750252238168,-430.0,0.00021917,6]
[366427096,1750252238177,-460.0,0.00021917,6]
[366427097,1750252238187,-460.0,0.00021917,6]
[366427098,1750252238196,-439.48035755,0.00021917,6]
[366427099,1750252238206,-204.40349047,0.00021917,6]
[366427100,1750252238215,-447.30142086,0.00021917,6]
[366427101,1750252238225,-460.0,0.00021917,6]
[366427102,1750252238234,-384.0664668,0.00021917,6]
[366427103,1750252238244,-336.21154462,0.00021917,6]
[366427104,1750252238254,-460.0,0.00021917,6]
[366427105,1750252238264,-460.0,0.00021917,6]
[366427106,1750252238274,-460.0,0.00021917,6]
[366427107,1750252238283,-460.0,0.00021917,6]
[366427108,1750252238292,-460.0,0.00021917,6]
[366427109,1750252238302,-460.0,0.00021917,6]
[366427110,1750252238311,-460.0,0.00021917,6]
[366427111,1750252238321,-353.49443933,0.00021917,6]
[366427112,1750252238330,-460.0,0.00021917,2]
[366427113,1750252238339,-460.0,0.00021917,6]
[366427114,1750252238349,-460.0,0.00021917,6]
[366427115,1750252238358,-444.12366532,0.00021917,6]
[366427116,1750252238367,-460.0,0.00021917,6]
[366427117,1750252238377,-460.0,0.00021917,6]
[366427118,1750252238386,-460.0,0.00021917,6]
[366427119,1750252238396,-460.0,0.00021917,6]
[366427120,1750252238405,-356.46583884,0.00021917,6]
[366427121,1750252238414,-460.0,0.00021917,6]
[366427122,1750252238424,-424.36143042,0.00021917,6]
[366427123,1750252238433,-400.0,0.00021917,6]
[366427124,1750252238442,-370.0,0.00021917,6]
[366427125,1750252238452,-1025.182543,0.00021917,2]
[366427126,1750252238462,-217.30279485,0.00021917,6]
[366427127,1750252238472,-460.0,0.00021917,6]
[366427128,1750252238481,-460.0,0.00021917,6]
[366427129,1750252238491,-460.0,0.00021917,6]
[366427130,1750252238500,-460.0,0.00021917,6]
[366427131,1750252238510,-460.0,0.00021917,6]
[366427132,1750252238520,-460.0,0.00021917,6]
[366427133,1750252238529,-460.0,0.00021917,6]
[366427134,1750252238538,-500.0,0.00021917,6]
[366427135,1750252238547,-460.0,0.00021917,6]
[366427136,1750252238556,-460.0,0.00021917,6]
[366427137,1750252238566,-151.0,0.00021917,2]
[366427138,1750252238576,-460.0,0.00021917,6]
[366427139,1750252238585,-151.0,0.00021917,2]
[366427140,1750252238595,-460.0,0.00021917,6]
[366427141,1750252238604,-248.34,0.00021917,6]
[366427142,1750252238614,-475.6638272,0.00021917,6]
[366427143,1750252238624,-151.0,0.00021917,2]
[366427144,1750252238634,-151.0,0.00021917,2]
[366427145,1750252238643,-172.576362,0.00021917,2]
[366427146,1750252238652,-460.0,0.00021917,6]
[366427147,1750252238750,-460.0,0.00021917,6]
[366427148,1750252238759,-460.0,0.00021917,6]
[366427149,1750252238769,-460.0,0.00021917,6]
[366427150,1750252238779,-460.0,0.00021917,6]
[366427151,1750252238789,-420.0,0.00021917,6]
[366427152,1750252238798,-460.0,0.00021917,6]
[366427153,1750252238807,-460.0,0.00021917,6]
[366427154,1750252238818,-460.0,0.00021917,6]
[366427155,1750252238827,-460.0,0.00021917,6]
[366427156,1750252238837,-606.03342612,0.00021917,6]
[366427157,1750252238846,-168.19292758,0.00021917,6]
[366427158,1750252238856,-460.0,0.00021917,6]
[366427159,1750252238865,-460.0,0.00021917,6]
[366427160,1750252238875,-460.0,0.00021917,6]
[366427161,1750252238885,-415.49954515,0.00021917,6]
[366427162,1750252238895,-528.09607589,0.00021917,6]
[366427163,1750252238905,-420.0,0.00021917,6]
[366427164,1750252238915,-460.0,0.00021917,6]
[366427165,1750252238929,-460.0,0.00021917,6]
[366427166,1750252238939,-425.94549569,0.00021917,6]
[366427167,1750252238949,-372.8342457,0.00021917,6]
[366427168,1750252238958,-460.0,0.00021917,6]
[366427169,1750252238969,-460.0,0.00021917,6]
[366427170,1750252238979,-460.0,0.00021917,6]
[366427171,1750252238990,-460.0,0.00021917,6]
[366427172,1750252239000,-460.0,0.00021917,6]
[366427173,1750252239010,-460.0,0.00021917,6]
[366427174,1750252239019,-462.41205587,0.00021917,6]
[366427175,1750252239029,-460.0,0.00021917,6]
[366427176,1750252239039,-460.0,0.00021917,6]
[366427177,1750252239048,-460.0,0.00021917,2]
[366427178,1750252239058,-360.98385158,0.00021917,6]
[366427179,1750252239068,-436.58317014,0.00021917,6]
[366427180,1750252239078,-463.7497496,0.00021917,6]
[366427181,1750252239088,-460.0,0.00021917,6]
[366427182,1750252239097,-485.13845365,0.00021917,6]
[366427183,1750252239108,-460.0,0.00021917,6]
[366427184,1750252239117,-460.0,0.00021917,6]
[366427185,1750252239127,-460.0,0.00021917,6]
[366427186,1750252239136,-460.0,0.00021917,6]
[366427187,1750252239146,-460.0,0.00021917,6]
[366427188,1750252239155,-447.97478659,0.00021917,6]
[366427189,1750252239164,-465.07343899,0.00021917,6]
[366427190,1750252239174,-460.0,0.00021917,6]
[366427191,1750252239183,-460.0,0.00021917,6]
[366427192,1750252239192,-271.79513577,0.00021917,6]
[366427193,1750252239202,-460.0,0.00021917,6]
[366427194,1750252239211,-460.0,0.00021917,6]
[366427195,1750252239221,-460.0,0.00021917,6]
[366427196,1750252239230,-460.0,0.00021917,6]
[366427197,1750252239239,-460.0,0.00021917,6]
[366427198,1750252239249,-460.0,0.00021917,6]
[366427199,1750252239258,-460.0,0.00021917,6]
[366427200,1750252239268,-460.0,0.00021917,6]
[366427201,1750252239277,-460.0,0.00021917,6]
[366427202,1750252239287,-460.0,0.00021917,6]
[366427203,1750252239296,-471.65189326,0.00021917,6]
[366427204,1750252239306,-460.0,0.00021917,6]
[366427205,1750252239315,-460.0,0.00021917,6]
[366427206,1750252239324,-460.0,0.00021917,6]
[366427207,1750252239334,-460.0,0.00021917,6]
[366427208,1750252239343,-250.0,0.00021917,6]
[366427209,1750252239352,-460.0,0.00021917,6]
[366427210,1750252239361,-460.0,0.00021917,6]
[366427211,1750252239371,-460.0,0.00021917,6]
[366427212,1750252239381,-597.9311044,0.00021917,6]
[366427213,1750252239390,-460.0,0.00021917,6]
[366427214,1750252239400,-235.977306,0.00021917,2]
[366427215,1750252239410,-460.0,0.00021917,6]
[366427216,1750252239420,-460.0,0.00021917,6]
[366427217,1750252239429,-235.977312,0.00021917,2]
[366427218,1750252239440,-460.0,0.00021917,6]
[366427219,1750252239450,-404.59649255,0.00021917,6]
[366427220,1750252239460,-151.0,0.00021917,2]
[366427221,1750252239470,-151.0,0.00021917,2]
[366427222,1750252239479,-400.0,0.00021917,6]
[366427223,1750252239488,-460.0,0.00021917,6]
[366427224,1750252239497,-370.40930741,0.00021917,6]
[366427225,1750252239507,-162.99650556,0.00021917,6]
[366427226,1750252239516,-460.0,0.00021917,6]
[366427227,1750252239525,-460.0,0.00021917,6]
[366427228,1750252239534,-460.0,0.00021917,6]
[366427229,1750252239544,-466.44006073,0.00021917,6]
[366427230,1750252239553,-460.0,0.00021917,6]
[366427231,1750252239562,-460.0,0.00021917,6]
[366427232,1750252239572,-500.0,0.00021917,6]
[366427233,1750252239582,-270.0,0.00021917,6]
[366427234,1750252239591,-304.25123012,0.00021917,6]
[366427235,1750252239600,-500.0,0.00021917,6]
[366427236,1750252239610,-500.0,0.00021917,6]
[366427237,1750252239620,-460.0,0.00021917,6]
[366427238,1750252239629,-460.0,0.00021917,6]
[366427239,1750252239639,-460.0,0.00021917,6]
[366427240,1750252239648,-266.72960514,0.00021917,6]
[366427241,1750252239658,-270.0,0.00021917,6]
[366427242,1750252239667,-460.0,0.00021917,6]
[366427243,1750252239676,-460.0,0.00021917,6]
[366427244,1750252239685,-460.0,0.00021917,6]
[366427246,1750252239695,-460.0,0.00021917,6]
[366427248,1750252239704,-460.80636229,0.00021917,6]
[366427249,1750252239714,-460.0,0.00021917,6]
[366427250,1750252239723,-460.0,0.00021917,6]
[366427251,1750252239733,-460.0,0.00021917,6]
[366427253,1750252239742,-518.70419911,0.00021917,6]
[366427254,1750252239751,-432.33609302,0.00021917,6]
[366427255,1750252239762,-460.0,0.00021917,6]
[366427256,1750252239772,-400.0,0.00021917,6]
[366427257,1750252239782,-460.0,0.00021917,6]
[366427258,1750252239793,-460.0,0.00021917,6]
[366427259,1750252239804,-450.0,0.00021917,6]
[366427261,1750252239813,-460.0,0.00021917,6]
[366427263,1750252239823,-460.0,0.00021917,6]
[366427265,1750252239833,-460.0,0.00021917,6]
[366427266,1750252239843,-460.0,0.00021917,6]
[366427267,1750252239852,-460.0,0.00021917,6]
[366427268,1750252239861,-460.0,0.00021917,6]
[366427269,1750252239871,-460.0,0.00021917,6]
[366427270,1750252239880,-497.04,0.00021917,6]
[366427271,1750252239890,-402.89541972,0.00021917,6]
[366427272,1750252239899,-420.89276745,0.00021917,6]
[366427273,1750252239908,-460.0,0.00021917,6]
[366427275,1750252239921,-1212.23,0.00021917,6]
[366427277,1750252239930,-407.27727923,0.00021917,6]
[366427278,1750252239946,-460.0,0.00021917,6]
[366427279,1750252239955,-463.52783984,0.00021917,6]
[366427280,1750252239967,-430.30456991,0.00021917,6]
[366427281,1750252239977,-460.0,0.00021917,6]
[366427282,1750252239987,-460.0,0.00021917,6]
[366427283,1750252239997,-472.80336111,0.00021917,6]
[366427284,1750252240007,-460.0,0.00021917,6]
[366427285,1750252240017,-460.0,0.00021917,6]
[366427286,1750252240027,-460.0,0.00021917,6]
[366427287,1750252240036,-404.04648942,0.00021917,6]
[366427289,1750252240045,-460.0,0.00021917,6]
[366427290,1750252240055,-460.0,0.00021917,6]
[366427291,1750252240065,-460.0,0.00021917,6]
[366427292,1750252240075,-460.0,0.00021917,6]
[366427293,1750252240085,-460.0,0.00021917,6]
[366427295,1750252240095,-460.0,0.00021917,6]
[366427296,1750252240106,-420.0,0.00021917,6]
[366427297,1750252240115,-468.55517041,0.00021917,6]
[366427298,1750252240125,-430.0,0.00021917,6]
[366427299,1750252240135,-460.0,0.00021917,6]
[366427300,1750252240145,-460.0,0.00021917,6]
[366427301,1750252240154,-460.0,0.00021917,6]
[366427302,1750252240163,-1479.93,0.00021917,6]
[366427303,1750252240172,-460.0,0.00021917,6]
[366427304,1750252240182,-460.0,0.00021917,6]
[366427306,1750252240192,-1494.46,0.00021917,6]
[366427307,1750252240201,-460.0,0.00021917,6]
[366427308,1750252240210,-460.0,0.00021917,6]
[366427309,1750252240220,-500.0,0.00021917,6]
[366427310,1750252240231,-500.0,0.00021917,6]
[366427311,1750252240241,-500.0,0.00021917,6]
[366427312,1750252240250,-456.47835184,0.00021917,6]
[366427314,1750252240260,-440.0,0.00021917,6]
[366427316,1750252240269,-460.0,0.00021917,6]
[366427318,1750252240279,-460.0,0.00021917,6]
[366427320,1750252240288,-460.0,0.00021917,6]
[366427322,1750252240298,-465.45041051,0.00021917,6]
[366427324,1750252240307,-460.0,0.00021917,6]
[366427326,1750252240317,-460.0,0.00021917,6]
[366427328,1750252240326,-440.0,0.00021917,6]
[366427330,1750252240335,-896.68,0.00021917,6]
[366427332,1750252240344,-460.0,0.00021917,6]
[366427334,1750252240354,-460.0,0.00021917,6]
[366427336,1750252240363,-1162.77,0.00021917,6]
[366427338,1750252240373,-460.0,0.00021917,6]
[366427340,1750252240382,-460.0,0.00021917,6]
[366427342,1750252240392,-390.0,0.00021917,6]
[366427344,1750252240401,-460.0,0.00021917,6]
[366427346,1750252240410,-460.0,0.00021917,6]
[366427348,1750252240419,-405.59752518,0.00021917,6]
[366427350,1750252240428,-460.0,0.00021917,6]
[366427359,1750252240438,-1027.62,0.00021917,6]
[366427361,1750252240523,-460.0,0.00021917,6]
[366427363,1750252240533,-460.0,0.00021917,6]
[366427365,1750252240543,-460.0,0.00021917,6]
[366427367,1750252240552,-460.0,0.00021917,6]
[366427369,1750252240561,-310.92320749,0.00021917,6]
[366427371,1750252240571,-460.0,0.00021917,6]
[366427373,1750252240580,-462.983561,0.00021917,6]
[366427375,1750252240589,-460.0,0.00021917,6]
[366427377,1750252240599,-460.0,0.00021917,6]
[366427379,1750252240608,-460.0,0.00021917,6]
[366427381,1750252240618,-424.7844398,0.00021917,6]
[366427383,1750252240627,-460.0,0.00021917,6]
[366427385,1750252240637,-460.0,0.00021917,6]
[366427387,1750252240647,-460.0,0.00021917,6]
[366427389,1750252240657,-371.28073416,0.00021917,6]
[366427391,1750252240666,-202.91241446,0.00021917,6]
[366427393,1750252240675,-400.0,0.00021917,6]
[366427395,1750252240684,-415.22696666,0.00021917,6]
[366427397,1750252240694,-460.0,0.00021917,6]
[366427399,1750252240703,-460.0,0.00021917,6]
[366427401,1750252240714,-586.73599795,0.00021917,6]
[366427403,1750252240724,-500.0,0.00021917,6]
[366427405,1750252240734,-460.0,0.00021917,6]
[366427407,1750252240745,-266.03177238,0.00021917,6]
[366427409,1750252240754,-431.38466652,0.00021917,6]
[366427411,1750252240765,-460.0,0.00021917,6]
[366427413,1750252240775,-460.0,0.00021917,6]
[366427415,1750252240786,-460.0,0.00021917,6]
[366427417,1750252240795,-460.0,0.00021917,6]
[366427419,1750252240805,-420.0,0.00021917,6]
[366427421,1750252240814,-460.0,0.00021917,6]
[366427423,1750252240823,-731.23,0.00021917,6]
[366427425,1750252240833,-468.52470898,0.00021917,6]
[366427427,1750252240843,-460.0,0.00021917,6]
[366427429,1750252240852,-460.0,0.00021917,6]
[366427431,1750252240862,-460.0,0.00021917,6]
[366427433,1750252240872,-460.0,0.00021917,6]
[366427435,1750252240882,-460.0,0.00021917,6]
[366427438,1750252240892,-460.0,0.00021917,6]
[366427440,1750252240902,-460.0,0.00021917,6]
[366427442,1750252240911,-460.0,0.00021917,6]
[366427443,1750252240923,-428.35938056,0.00021917,6]
[366427445,1750252240937,-460.0,0.00021917,6]
[366427448,1750252240947,-460.0,0.00021917,6]
[366427450,1750252240956,-460.0,0.00021917,6]
[366427452,1750252240966,-460.0,0.00021917,6]
[366427454,1750252240977,-460.0,0.00021917,6]
[366427455,1750252240986,-460.0,0.00021917,6]
[366427457,1750252240996,-460.0,0.00021917,6]
[366427460,1750252241005,-510.21924857,0.00021917,6]
[366427461,1750252241015,-460.0,0.00021917,6]
[366427464,1750252241025,-460.0,0.00021917,6]
[366427466,1750252241034,-460.0,0.00021917,6]
[366427467,1750252241044,-401.69998816,0.00021917,6]
[366427470,1750252241053,-460.0,0.00021917,6]
[366427471,1750252241063,-460.0,0.00021917,6]
[366427473,1750252241073,-460.0,0.00021917,6]
[366427475,1750252241082,-460.0,0.00021917,6]
[366427477,1750252241091,-460.0,0.00021917,6]
[366427479,1750252241101,-460.0,0.00021917,6]
[366427481,1750252241110,-304.4442564,0.00021917,6]
[366427483,1750252241119,-260.35240671,0.00021917,6]
[366427485,1750252241128,-370.0,0.00021917,6]
[366427487,1750252241138,-507.09,0.00021917,6]
[366427489,1750252241147,-460.0,0.00021917,6]
[366427491,1750252241157,-872.53,0.00021917,6]
[366427493,1750252241166,-460.0,0.00021917,6]
[366427495,1750252241176,-460.0,0.00021917,6]
[366427497,1750252241193,-460.0,0.00021917,6]
[366427499,1750252241203,-460.0,0.00021917,6]
[366427501,1750252241212,-460.0,0.00021917,6]
[366427503,1750252241221,-471.21767494,0.00021917,6]
[366427505,1750252241230,-460.0,0.00021917,6]
[366427507,1750252241240,-445.82063747,0.00021917,6]
[366427509,1750252241249,-460.0,0.00021917,6]
[366427511,1750252241258,-460.0,0.00021917,6]
[366427513,1750252241268,-460.0,0.00021917,6]
[366427515,1750252241277,-460.0,0.00021917,6]
[366427517,1750252241286,-460.0,0.00021917,6]
[366427519,1750252241295,-460.0,0.00021917,6]
[366427521,1750252241304,-420.0,0.00021917,6]
[366427524,1750252241321,-460.0,0.00021917,6]
[366427527,1750252241337,-460.0,0.00021917,6]
[366427529,1750252241350,-460.0,0.00021917,6]
[366427532,1750252241363,-460.0,0.00021917,6]
[366427534,1750252241376,-460.0,0.00021917,6]
[366427537,1750252241392,-535.46,0.00021917,6]
[366427539,1750252241406,-460.0,0.00021917,6]
[366427542,1750252241421,-436.44759176,0.00021917,6]
[366427544,1750252241435,-422.87533711,0.00021917,6]
[366427547,1750252241449,-432.08676221,0.00021917,6]
[366427549,1750252241462,-460.0,0.00021917,6]
[366427552,1750252241477,-460.0,0.00021917,6]
[366427554,1750252241492,-460.0,0.00021917,6]
[366427556,1750252241506,-430.0,0.00021917,6]
[366427559,1750252241517,-460.0,0.00021917,6]
[366427561,1750252241531,-460.0,0.00021917,6]
[366427563,1750252241544,-460.0,0.00021917,6]
[366427566,1750252241558,-460.0,0.00021917,6]
[366427568,1750252241572,-460.0,0.00021917,6]
[366427571,1750252241588,-460.0,0.00021917,6]
[366427574,1750252241604,-460.0,0.00021917,6]
[366427576,1750252241620,-460.0,0.00021917,6]
[366427578,1750252241632,-460.0,0.00021917,6]
[366427581,1750252241644,-460.0,0.00021917,6]
[366427583,1750252241658,-460.0,0.00021917,6]
[366427586,1750252241674,-338.589068,0.00021917,2]
[366427588,1750252241686,-460.0,0.00021917,6]
[366427590,1750252241699,-460.0,0.00021917,6]
[366427592,1750252241712,-156.70165054,0.00021917,6]
[366427595,1750252241726,-460.0,0.00021917,6]
[366427597,1750252241737,-460.0,0.00021917,6]
[366427599,1750252241749,-418.8898891,0.00021917,6]
[366427601,1750252241761,-3020.47,0.00021917,6]
[366427603,1750252241773,-460.0,0.00021917,6]
[366427606,1750252241785,-1237.72,0.00021917,6]
[366427608,1750252241797,-460.0,0.00021917,6]
[366427610,1750252241809,-460.0,0.00021917,2]
[366427613,1750252241821,-460.0,0.00021917,6]
[366427615,1750252241834,-460.0,0.00021917,6]
[366427617,1750252241846,-460.0,0.00021917,6]
[366427619,1750252241859,-460.0,0.00021917,6]
[366427622,1750252241871,-469.33883381,0.00021917,6]
[366427624,1750252241884,-460.0,0.00021917,6]
[366427626,1750252241896,-151.0,0.00021939,7]
[366427628,1750252241908,-243.680767,0.00021939,7]
[366427631,1750252241924,-317.95,0.00021939,2]
[366427633,1750252241936,-317.95,0.00021939,2]
[366427635,1750252241950,-203.7984,0.00021939,7]
[366427638,1750252241963,-624.0,0.00021939,2]
[366427640,1750252241977,-624.0,0.00021942,2]
[366427642,1750252241990,-397.69405856,0.00021944,2]
[366427644,1750252242002,-1000.0,0.00021944,2]
[366427647,1750252242014,-1521.50742211,0.00021969,6]
[366427649,1750252242027,-500.34784896,0.00021973,2]
[366427651,1750252242038,-500.26814451,0.00021973,2]
[366427653,1750252242051,-500.0,0.00021973,2]
[366427656,1750252242063,-500.0,0.00021973,2]
[366427658,1750252242075,-500.0,0.00021973,2]
[366427660,1750252242086,-504.88421293,0.00021973,2]
[366427663,1750252242099,-500.0,0.00021973,2]
[366427665,1750252242111,-500.0,0.00021973,2]
[366427667,1750252242123,-500.0,0.00021973,2]
[366427669,1750252242135,-201.0,0.00021973,2]
[366427672,1750252242148,-500.0,0.00021973,2]
[366427674,1750252242159,-503.26439218,0.00021973,2]
[366427676,1750252242172,-412.00594049,0.00021973,2]
[366427678,1750252242183,-500.0,0.00021973,2]
[366427680,1750252242193,-500.0,0.00021973,2]
[366427682,1750252242203,-500.0,0.00021973,2]
[366427684,1750252242212,-500.0,0.00021973,2]
[366427686,1750252242222,-323.57026451,0.00021973,2]
[366427688,1750252242231,-243.94881655,0.00021973,2]
[366427690,1750252242240,-500.0,0.00021973,2]
[366427692,1750252242250,-224.87685824,0.00021973,2]
[366427694,1750252242259,-500.0,0.00021973,2]
[366427696,1750252242268,-500.0,0.00021973,2]
[366427698,1750252242277,-587.0,0.00021976,2]
[366427700,1750252242286,-160.0,0.00022,3]
[366427702,1750252242296,-160.0,0.00022,3]
[366427704,1750252242305,-160.0,0.00022,3]
[366427723,1750252242465,-624.0,0.0002207,2]
[366427725,1750252242479,-624.0,0.00022111,2]
[366427727,1750252242488,-317.95,0.00022125,2]
[366427729,1750252242498,-317.95,0.00022125,2]
[366427731,1750252242508,-5000.0,0.00022168,2]
[366427733,1750252242517,-507.46660414,0.00022173,2]
[366427735,1750252242526,-1521.50742211,0.00022176,6]
[366427737,1750252242536,-151.0,0.0002219,7]
[366427739,1750252242545,-155.851595,0.0002219,7]
[366427741,1750252242555,-209.781369,0.00022191,7]
[366427743,1750252242564,-151.0,0.00022191,7]
[366427745,1750252242573,-281.16929286,0.00022191,6]
[366427747,1750252242582,-151.63588687,0.00022191,6]
[366427749,1750252242591,-460.0,0.00022191,6]
[366427751,1750252242600,-460.0,0.00022191,6]
[366427753,1750252242610,-364.39754856,0.00022191,6]
[366427755,1750252242619,-460.0,0.00022191,6]
[366427757,1750252242628,-460.0,0.00022191,6]
[366427759,1750252242638,-457.94991472,0.00022191,6]
[366427761,1750252242647,-460.0,0.00022191,6]
[366427763,1750252242656,-460.0,0.00022191,2]
[366427764,1750252242666,-410.0,0.00022191,6]
[366427766,1750252242675,-460.0,0.00022191,6]
[366427768,1750252242685,-430.0,0.00022191,6]
[366427770,1750252242695,-460.0,0.00022191,6]
[366427772,1750252242705,-460.0,0.00022191,6]
[366427774,1750252242714,-460.0,0.00022191,6]
[366427776,1750252242725,-460.0,0.00022191,6]
[366427779,1750252242735,-500.0,0.00022191,6]
[366427780,1750252242745,-460.0,0.00022191,6]
[366427782,1750252242755,-460.0,0.00022191,6]
[366427784,1750252242764,-400.0,0.00022191,6]
[366427786,1750252242773,-460.0,0.00022191,6]
[366427788,1750252242783,-460.0,0.00022191,6]
[366427790,1750252242792,-460.0,0.00022191,6]
[366427792,1750252242802,-460.0,0.00022191,6]
[366427794,1750252242812,-460.0,0.00022191,6]
[366427796,1750252242821,-460.0,0.00022191,6]
[366427798,1750252242831,-376.63810257,0.00022191,6]
[366427800,1750252242840,-460.0,0.00022191,6]
[366427802,1750252242850,-460.0,0.00022191,6]
[366427804,1750252242859,-460.0,0.00022191,6]
[366427806,1750252242868,-460.0,0.00022191,6]
[366427808,1750252242878,-460.0,0.00022191,6]
[366427810,1750252242887,-460.0,0.00022191,6]
[366427812,1750252242896,-460.0,0.00022191,6]
[366427813,1750252242906,-460.0,0.00022191,6]
[366427814,1750252242916,-400.0,0.00022191,2]
[366427815,1750252242930,-460.0,0.00022191,6]
[366427816,1750252242940,-460.0,0.00022191,6]
[366427817,1750252242950,-460.0,0.00022191,6]
[366427818,1750252242959,-460.0,0.00022191,6]
[366427819,1750252242969,-460.0,0.00022191,6]
[366427820,1750252242979,-460.0,0.00022191,6]
[366427821,1750252242988,-460.0,0.00022191,6]
[366427822,1750252242998,-440.0,0.00022191,6]
[366427823,1750252243008,-460.0,0.00022191,6]
[366427824,1750252243018,-460.0,0.00022191,6]
[366427825,1750252243027,-460.0,0.00022191,6]
[366427826,1750252243036,-460.0,0.00022191,6]
[366427827,1750252243046,-221.29041718,0.00022191,6]
[366427828,1750252243055,-440.0,0.00022191,6]
[366427829,1750252243064,-233.86414186,0.00022191,6]
[366427831,1750252243073,-460.0,0.00022191,6]
[366427833,1750252243082,-460.0,0.00022191,6]
[366427835,1750252243093,-460.0,0.00022191,6]
[366427837,1750252243102,-460.0,0.00022191,6]
[366427839,1750252243111,-460.0,0.00022191,6]
[366427841,1750252243120,-460.0,0.00022191,6]
[366427843,1750252243129,-460.0,0.00022191,6]
[366427845,1750252243139,-460.0,0.00022191,6]
[366427847,1750252243148,-460.0,0.00022191,6]
[366427849,1750252243157,-400.0,0.00022191,6]